bitfinex-derivatives/quotes_BTCF0:USTF0_20250926
["timestamp","ask_amount","ask_price","bid_price","bid_amount"]
[1758859256227,1.25001664,109600.0,109590.0,0.49014503]
[1758859256426,1.25001664,109600.0,109590.0,0.49114503]
[1758859256828,1.25001664,109600.0,109590.0,0.49014503]
[1758859257032,1.25501664,109600.0,109590.0,0.58133803]
[1758859257225,0.9583447,109600.0,109590.0,0.58133803]
[1758859257527,0.9583447,109600.0,109590.0,0.57933803]
[1758859258324,0.86716,109600.0,109590.0,0.57933803]
[1758859259428,0.86716,109600.0,109590.0,0.87600997]
[1758859259932,0.86216,109600.0,109590.0,0.87700997]
[1758859260429,0.86216,109600.0,109590.0,0.87900997]
[1758859262833,0.9533447,109600.0,109590.0,0.78781697]
[1758859263634,0.9533447,109600.0,109590.0,0.87900997]
[1758859264033,0.9533447,109600.0,109590.0,0.87600997]
[1758859264331,0.9583447,109600.0,109590.0,0.87600997]
[1758859264731,0.86716,109600.0,109590.0,0.87600997]
[1758859265133,0.84412,109600.0,109590.0,0.87600997]
[1758859265331,0.4053736,109630.0,109620.0,0.03425]
[1758859265521,0.4053736,109630.0,109620.0,0.33092194]
[1758859265522,1.00132994,109630.0,109620.0,0.33092194]
[1758859265724,0.9773436,109630.0,109620.0,0.03425]
[1758859265928,1.27401554,109630.0,109620.0,0.03425]
[1758859266134,1.28591695,109630.0,109620.0,0.03425]
[1758859267836,1.28891695,109630.0,109620.0,0.03425]
[1758859268231,1.30491695,109630.0,109620.0,0.03425]
[1758859268732,1.29091695,109630.0,109620.0,0.03425]
[1758859269134,1.29091695,109630.0,109610.0,0.4646064]
[1758859269329,0.31824194,109620.0,109610.0,0.4862264]
[1758859269936,0.02157,109620.0,109610.0,0.4862264]
[1758859270937,0.02257,109620.0,109610.0,0.4882264]
[1758859272434,0.02257,109620.0,109610.0,0.78489834]
[1758859273638,0.02157,109620.0,109610.0,0.78489834]
[1758859274236,0.02157,109620.0,109610.0,0.78289834]
[1758859274432,0.02157,109620.0,109610.0,0.78489834]
[1758859275037,0.02157,109620.0,109610.0,0.78289834]
[1758859275241,0.02157,109620.0,109610.0,0.78489834]
[1758859275839,1.32697891,109630.0,109610.0,0.87612673]
[1758859276044,0.9773436,109630.0,109620.0,0.486218]
[1758859276746,1.27401554,109630.0,109620.0,0.486218]
[1758859276943,1.18477174,109630.0,109620.0,0.486218]
[1758859277145,0.8880998,109630.0,109620.0,0.486218]
[1758859277342,0.8940998,109630.0,109620.0,0.486218]
[1758859277844,0.9852595,109630.0,109620.0,0.486218]
[1758859278446,1.28193144,109630.0,109620.0,0.486218]
[1758859278747,0.9852595,109630.0,109620.0,0.486218]
[1758859279040,1.28193144,109630.0,109620.0,0.486218]
[1758859279848,1.28193144,109630.0,109620.0,0.488218]
[1758859280549,1.27593144,109630.0,109620.0,0.486218]
[1758859281243,1.28193144,109630.0,109620.0,0.486218]
[1758859281439,1.19077174,109630.0,109620.0,0.486218]
[1758859281653,0.8940998,109630.0,109620.0,0.486218]
[1758859281851,0.8940998,109630.0,109620.0,0.78288994]
[1758859282047,0.8932998,109630.0,109620.0,0.78288994]
[1758859282443,0.8932998,109630.0,109620.0,0.486218]
[1758859282944,0.9844593,109630.0,109620.0,0.488218]
[1758859283242,1.28113124,109630.0,109620.0,0.488218]
[1758859283650,1.28113124,109630.0,109620.0,0.39705]
[1758859284343,1.27513124,109630.0,109620.0,0.39705]
[1758859284548,1.27513124,109630.0,109620.0,0.39505]
[1758859285051,1.28113124,109630.0,109620.0,0.39505]
[1758859285441,1.28113124,109630.0,109620.0,0.486218]
[1758859286653,1.27513124,109630.0,109620.0,0.486218]
[1758859286853,1.28113124,109630.0,109620.0,0.486218]
[1758859287154,1.28113124,109630.0,109620.0,0.488218]
[1758859287554,1.27513124,109630.0,109620.0,0.488218]
[1758859288049,1.27513124,109630.0,109620.0,0.486218]
[1758859288655,1.28113124,109630.0,109620.0,0.486218]
[1758859289152,0.9844593,109630.0,109620.0,0.486218]
[1758859289447,1.28113124,109630.0,109620.0,0.486218]
[1758859290255,1.28113124,109630.0,109620.0,0.488218]
[1758859290653,1.18397174,109630.0,109620.0,0.488218]
[1758859291053,1.18397174,109630.0,109620.0,0.486218]
[1758859291250,0.8932998,109630.0,109620.0,0.78288994]
[1758859291756,0.8872998,109630.0,109620.0,0.486218]
[1758859291959,0.8872998,109630.0,109620.0,0.78488994]
[1758859292160,0.9784594,109630.0,109620.0,0.78488994]
[1758859292360,0.9784594,109630.0,109620.0,0.488218]
[1758859292756,1.27513134,109630.0,109620.0,0.39705]
[1758859293062,0.9784594,109630.0,109620.0,0.39705]
[1758859293262,1.27513134,109630.0,109620.0,0.39705]
[1758859294366,1.28113134,109630.0,109620.0,0.39505]
[1758859295660,1.28113134,109630.0,109620.0,0.03425]
[1758859295866,0.112928,109620.0,109610.0,0.03424]
[1758859296055,0.40959994,109620.0,109610.0,0.39504]
[1758859296259,0.112928,109620.0,109610.0,0.57743636]
[1758859296463,0.40959994,109620.0,109610.0,0.57743636]
[1758859296658,0.02176,109620.0,109610.0,0.57743636]
[1758859296864,0.9846541,109630.0,109620.0,0.03534]
[1758859297062,0.9846541,109630.0,109620.0,0.39614]
[1758859297464,0.9786541,109630.0,109620.0,0.39814]
[1758859297961,1.28044604,109630.0,109620.0,0.39814]
[1758859298162,1.28644604,109630.0,109620.0,0.3628]
[1758859298366,0.9897741,109630.0,109620.0,0.38241]
[1758859298567,1.28644604,109630.0,109620.0,0.38241]
[1758859299169,1.28744604,109630.0,109620.0,0.38241]
[1758859300371,1.29244604,109630.0,109620.0,0.38241]
[1758859300670,1.29242688,109630.0,109620.0,0.38241]
[1758859301075,1.28730688,109630.0,109620.0,0.39614]
[1758859301264,1.28730688,109630.0,109620.0,0.03534]
[1758859302272,1.28630688,109630.0,109620.0,0.03534]
[1758859304571,1.28730688,109630.0,109620.0,0.03534]
[1758859305176,0.1129278,109620.0,109610.0,0.4862158]
[1758859305376,0.1129278,109620.0,109610.0,0.78286858]
[1758859305571,0.40958058,109620.0,109610.0,0.87408864]
[1758859306169,0.40958058,109620.0,109610.0,0.3608]
[1758859306170,0.71934336,109620.0,109610.0,0.3608]
[1758859306376,0.70623336,109620.0,109610.0,0.39614]
[1758859307478,0.40958058,109620.0,109610.0,0.78396898]
[1758859307982,0.41558058,109620.0,109610.0,0.78396898]
[1758859308579,0.006,109620.0,109610.0,0.78396898]
[1758859308778,0.02776,109620.0,109610.0,0.78396898]
[1758859308977,0.32441278,109620.0,109610.0,0.78396898]
[1758859309880,0.41558058,109620.0,109610.0,0.78396898]
[1758859310576,0.41558058,109620.0,109610.0,0.78596898]
[1758859310775,0.02776,109620.0,109610.0,0.78596898]
[1758859311076,0.006,109620.0,109610.0,0.4893162]
[1758859311284,0.006,109620.0,109610.0,0.78396898]
[1758859312079,0.02776,109620.0,109610.0,0.78396898]
[1758859312276,0.41558058,109620.0,109610.0,0.4873162]
[1758859312472,0.41558058,109620.0,109610.0,0.78396898]
[1758859313074,0.32441278,109620.0,109610.0,0.78396898]
[1758859313280,0.006,109620.0,109610.0,0.78396898]
[1758859314182,0.85096,109620.0,109610.0,0.78396898]
[1758859314477,0.006,109620.0,109610.0,0.87519737]
[1758859314678,0.54716,109620.0,109610.0,1.27519737]
[1758859314981,0.54716,109620.0,109610.0,1.3568995]
[1758859315679,0.95074068,109620.0,109610.0,0.9568995]
[1758859315886,0.95074068,109620.0,109610.0,0.48736839]
[1758859316181,0.95074068,109620.0,109610.0,0.78402117]
[1758859316370,0.95074068,109620.0,109610.0,0.87519747]
[1758859316573,0.95074068,109620.0,109610.0,0.87719747]
[1758859317377,0.95074068,109620.0,109610.0,0.87519747]
[1758859318486,0.95674068,109620.0,109610.0,0.87519747]
[1758859318783,0.6600879,109620.0,109610.0,0.87519747]
[1758859318985,0.95674068,109620.0,109610.0,0.87519747]
[1758859319679,0.95674068,109620.0,109610.0,0.9568996]
[1758859319889,0.02776,109620.0,109610.0,0.9568996]
[1758859320079,0.87256,109620.0,109610.0,0.9588996]
[1758859320579,0.87256,109620.0,109610.0,0.87719747]
[1758859322081,0.86656,109620.0,109610.0,0.87719747]
[1758859325683,0.86656,109620.0,109610.0,0.9588996]
[1758859326289,0.8448,109620.0,109610.0,0.9588996]
[1758859326987,0.8448,109620.0,109610.0,0.87719747]
[1758859327190,0.86797,109620.0,109610.0,0.87719747]
[1758859327687,0.86797,109620.0,109610.0,0.9588996]
[1758859328192,0.959138,109620.0,109610.0,0.9588996]
[1758859329594,1.25579078,109620.0,109610.0,0.9588996]
[1758859329990,1.25579078,109620.0,109610.0,0.87719747]
[1758859330691,0.8448,109620.0,109610.0,0.87719747]
[1758859330993,0.8448,109620.0,109610.0,1.27719747]
[1758859331194,0.8448,109620.0,109610.0,0.98054469]
[1758859331393,0.8448,109620.0,109610.0,1.27719747]
[1758859331695,0.42947688,109630.0,109620.0,0.03566]
[1758859331887,1.27331688,109630.0,109620.0,0.78428078]
[1758859333095,1.27331688,109630.0,109620.0,0.69311278]
[1758859333590,1.27331688,109630.0,109620.0,0.39646]
[1758859333795,1.27331688,109630.0,109620.0,0.69311278]
[1758859334387,1.27931688,109630.0,109620.0,0.69311278]
[1758859335396,1.27931688,109630.0,109620.0,0.78428078]
[1758859337000,1.27931688,109630.0,109620.0,0.69311278]
[1758859337192,1.27931688,109630.0,109620.0,0.39646]
[1758859337392,1.27931688,109630.0,109620.0,0.69311278]
[1758859340101,1.27931688,109630.0,109620.0,0.39646]
[1758859340699,1.27931688,109630.0,109620.0,0.69311278]
[1758859341597,1.27931688,109630.0,109620.0,0.39646]
[1758859341803,1.29242688,109630.0,109620.0,0.39646]
[1758859342004,1.27393708,109630.0,109620.0,0.39646]
[1758859342204,1.66082708,109630.0,109620.0,0.39646]
[1758859347803,1.66082708,109630.0,109620.0,0.38279]
[1758859348007,0.1143587,109620.0,109610.0,0.69355278]
[1758859348195,0.41101148,109620.0,109610.0,0.69355278]
[1758859348796,0.70766426,109620.0,109610.0,0.3969]
[1758859349203,0.70766426,109620.0,109610.0,0.3989]
[1758859350210,0.41101148,109620.0,109610.0,0.69555278]
[1758859350696,0.70766426,109620.0,109610.0,0.69555278]
[1758859351209,0.41101148,109620.0,109610.0,0.69555278]
[1758859351409,0.41101148,109620.0,109610.0,0.69355278]
[1758859351710,0.1143587,109620.0,109610.0,0.69355278]
[1758859351911,0.1143587,109620.0,109610.0,0.78472978]
[1758859352100,0.41101148,109620.0,109610.0,0.78472978]
[1758859352300,0.02319,109620.0,109610.0,0.78472978]
[1758859352500,0.86619,109620.0,109610.0,0.86643191]
[1758859352712,0.87219,109620.0,109610.0,0.86643191]
[1758859352912,0.87219,109620.0,109610.0,0.78672978]
[1758859353812,0.86619,109620.0,109610.0,0.78672978]
[1758859355006,0.86619,109620.0,109610.0,0.78472978]
[1758859355210,0.86619,109620.0,109610.0,0.78672978]
[1758859357112,1.16284278,109620.0,109610.0,0.78672978]
[1758859357713,0.86619,109620.0,109610.0,0.78672978]
[1758859358620,0.86619,109620.0,109610.0,0.87795817]
[1758859360513,0.86619,109620.0,109610.0,0.87792076]
[1758859362922,0.86619,109620.0,109610.0,0.95962289]
[1758859365523,0.86619,109620.0,109610.0,1.32042289]
[1758859371330,0.9573589,109620.0,109610.0,1.32042289]
[1758859371631,0.9573589,109620.0,109610.0,1.02380752]
[1758859376124,0.9573589,109620.0,109610.0,1.32042289]
[1758859376933,0.9573589,109620.0,109610.0,1.02380752]
[1758859377122,0.9573589,109620.0,109610.0,1.32042289]
[1758859377528,1.25397427,109620.0,109610.0,0.84140213]
[1758859377727,1.25397427,109620.0,109610.0,0.7597]
[1758859378129,1.65397427,109620.0,109610.0,0.7597]
[1758859380228,1.3573589,109620.0,109610.0,0.7597]
[1758859380427,1.65397427,109620.0,109610.0,0.7597]
[1758859381034,2.31650964,109620.0,109610.0,0.002]
[1758859381225,2.33519003,109620.0,109610.0,0.002]
[1758859381533,2.35909781,109620.0,109610.0,0.002]
[1758859382232,2.33519003,109620.0,109610.0,0.002]
[1758859382428,4.20928642,109620.0,109610.0,0.002]
[1758859382633,0.1240756,109600.0,109590.0,0.3608]
[1758859382826,1.33335998,109600.0,109590.0,0.3608]
[1758859383027,1.33335998,109600.0,109580.0,0.37415]
[1758859383028,0.1129739,109590.0,109580.0,0.39629]
[1758859383223,0.40958927,109590.0,109580.0,0.39629]
[1758859384534,0.40958927,109590.0,109580.0,0.41329]
[1758859385030,0.31839537,109590.0,109580.0,0.41329]
[1758859385334,1.02683681,109600.0,109590.0,0.03428]
[1758859385537,1.02683681,109600.0,109590.0,0.39508]
[1758859385730,0.18595681,109600.0,109590.0,0.78288927]
[1758859385924,1.02923681,109600.0,109590.0,0.78288927]
[1758859387035,1.02923681,109600.0,109590.0,0.78588927]
[1758859387332,1.02923681,109600.0,109590.0,0.79188927]
[1758859388037,1.02923681,109600.0,109590.0,0.4952739]
[1758859388236,1.02923681,109600.0,109590.0,0.79188927]
[1758859389227,1.02923681,109600.0,109590.0,0.4952739]
[1758859389532,1.02923681,109600.0,109590.0,0.40408]
[1758859389533,1.32585218,109600.0,109590.0,0.40408]
[1758859391641,1.33674697,109600.0,109590.0,0.40408]
[1758859391936,1.32585218,109600.0,109590.0,0.40408]
[1758859392137,1.02923681,109600.0,109590.0,0.40408]
[1758859392526,1.02923681,109600.0,109590.0,0.79188927]
[1758859393240,1.02987681,109600.0,109590.0,0.79188927]
[1758859393538,1.02987681,109600.0,109590.0,0.70069537]
[1758859395140,1.02987681,109600.0,109590.0,0.79188927]
[1758859397343,1.02987681,109600.0,109590.0,0.4952739]
[1758859397538,1.02987681,109600.0,109590.0,0.79188927]
[1758859405146,1.32649218,109600.0,109590.0,0.40408]
[1758859405745,1.02987681,109600.0,109590.0,0.40408]
[1758859406149,1.32649218,109600.0,109590.0,0.40408]
[1758859406650,1.02987681,109600.0,109590.0,0.40408]
[1758859406842,1.32649218,109600.0,109590.0,0.40408]
[1758859411051,1.02987681,109600.0,109590.0,0.40408]
[1758859412659,1.32649218,109600.0,109590.0,0.40408]
[1758859416060,1.32649218,109600.0,109590.0,0.40408]
[1758859417857,1.02987681,109600.0,109590.0,0.40408]
[1758859418157,1.32649218,109600.0,109590.0,0.40408]
[1758859418355,1.02987681,109600.0,109590.0,0.40408]
[1758859418563,1.32649218,109600.0,109590.0,0.40408]
[1758859420165,1.02987681,109600.0,109590.0,0.40408]
[1758859420464,1.32649218,109600.0,109590.0,0.40408]
[1758859420668,1.32664872,109600.0,109590.0,0.70085191]
[1758859421469,1.02987681,109600.0,109590.0,0.70085191]
[1758859421663,1.62342063,109600.0,109590.0,0.70085191]
[1758859421864,1.02987681,109600.0,109590.0,0.70085191]
[1758859422067,1.62342063,109600.0,109590.0,0.70085191]
[1758859426269,1.62342063,109600.0,109590.0,0.40408]
[1758859426567,1.62342063,109600.0,109590.0,0.70085191]
[1758859427469,1.62342063,109600.0,109590.0,0.40408]
[1758859429270,1.02987681,109600.0,109590.0,0.40408]
[1758859429571,1.02987681,109600.0,109590.0,0.39115]
[1758859429768,1.62342063,109600.0,109590.0,0.39115]
[1758859431474,1.02987681,109600.0,109590.0,0.40463]
[1758859431671,1.62342063,109600.0,109590.0,0.40463]
[1758859431973,1.62342063,109600.0,109590.0,0.39115]
[1758859432473,0.77950063,109600.0,109590.0,0.39115]
[1758859432672,0.03277526,109640.0,109630.0,0.03563]
[1758859432976,0.53561316,109670.0,109660.0,0.03563]
[1758859432977,0.6363975,109670.0,109660.0,0.03563]
[1758859433168,0.54527,109670.0,109660.0,0.33240191]
[1758859433365,0.6363975,109670.0,109660.0,0.73240191]
[1758859433567,0.02287,109670.0,109660.0,1.02917382]
[1758859433775,0.02287,109670.0,109660.0,1.38997382]
[1758859434079,0.02287,109670.0,109660.0,1.57235465]
[1758859434270,0.02287,109670.0,109660.0,1.08110962]
[1758859435670,0.02787,109670.0,109660.0,1.08110962]
[1758859435870,0.02787,109670.0,109660.0,0.4875658]
[1758859436071,0.02787,109670.0,109660.0,1.08110962]
[1758859436874,0.41576931,109670.0,109660.0,0.69320191]
[1758859437275,0.1189974,109670.0,109660.0,0.69320191]
[1758859437573,0.41576931,109670.0,109660.0,0.69320191]
[1758859438172,0.0911357,109660.0,109650.0,0.37428]
[1758859438372,1.24872761,109660.0,109650.0,0.69384191]
[1758859438579,1.24872761,109660.0,109650.0,0.03627]
[1758859438780,1.25384761,109660.0,109650.0,0.01348]
[1758859438971,0.112724,109650.0,109640.0,0.69384191]
[1758859439275,0.40949591,109650.0,109640.0,0.69384191]
[1758859439779,0.40749591,109650.0,109640.0,0.69384191]
[1758859439980,0.110724,109650.0,109640.0,0.69384191]
[1758859440181,0.40749591,109650.0,109640.0,0.69384191]
[1758859440380,0.40649591,109650.0,109640.0,0.69384191]
[1758859440577,0.40649591,109650.0,109640.0,0.69484191]
[1758859441181,0.40649591,109650.0,109640.0,0.69384191]
[1758859441373,0.40749591,109650.0,109640.0,0.33304191]
[1758859442073,0.41749591,109650.0,109640.0,0.33304191]
[1758859442280,0.120724,109650.0,109640.0,0.33304191]
[1758859442474,0.41749591,109650.0,109640.0,0.03627]
[1758859442679,0.1127324,109640.0,109630.0,0.39707]
[1758859442876,1.24930431,109640.0,109630.0,0.39707]
[1758859443078,1.24930431,109640.0,109630.0,0.37428]
[1758859443486,1.24930431,109640.0,109620.0,0.69352191]
[1758859443487,0.0911607,109630.0,109620.0,0.69352191]
[1758859443672,0.40951261,109630.0,109620.0,0.69352191]
[1758859444277,0.40951261,109630.0,109620.0,0.39675]
[1758859445277,0.112549,109620.0,109610.0,0.3967]
[1758859445477,1.24952091,109620.0,109610.0,0.3967]
[1758859445674,1.24952091,109620.0,109610.0,0.69347191]
[1758859445879,1.24752091,109620.0,109610.0,0.69347191]
[1758859446386,1.24752091,109620.0,109610.0,0.3967]
[1758859446585,0.956749,109620.0,109610.0,0.78464921]
[1758859446793,1.25352091,109620.0,109610.0,0.78464921]
[1758859448282,0.962749,109620.0,109610.0,0.78464921]
[1758859448584,1.25952091,109620.0,109610.0,0.78464921]
[1758859449485,0.87258,109620.0,109610.0,0.78464921]
[1758859449786,0.87342,109620.0,109610.0,0.8758776]
[1758859449987,0.86742,109620.0,109610.0,0.8758776]
[1758859450286,0.86642,109620.0,109610.0,0.8758776]
[1758859450490,0.86742,109620.0,109610.0,0.8758776]
[1758859451885,0.958589,109620.0,109610.0,0.8758776]
[1758859453596,0.86742,109620.0,109610.0,0.8758776]
[1758859453992,0.958589,109620.0,109610.0,0.8758776]
[1758859455588,1.25536091,109620.0,109610.0,0.7847003]
[1758859456098,1.25536091,109620.0,109610.0,0.8758776]
[1758859456594,0.958589,109620.0,109610.0,0.8758776]
[1758859462589,1.25536091,109620.0,109610.0,0.8758776]
[1758859465900,1.25536091,109620.0,109610.0,0.57910569]
[1758859466101,1.25536091,109620.0,109610.0,0.7847003]
[1758859466601,1.25536091,109620.0,109610.0,0.0359]
[1758859466602,1.95213282,109620.0,109610.0,0.0359]
[1758859466806,0.1130473,109610.0,109600.0,0.39658]
[1758859467106,0.40981921,109610.0,109600.0,0.7845803]
[1758859467300,0.40981921,109610.0,109600.0,0.84984347]
[1758859467698,0.40981921,109610.0,109600.0,0.55307156]
[1758859468204,0.40981921,109610.0,109600.0,0.64425716]
[1758859468508,0.40981921,109610.0,109600.0,0.94102907]
[1758859469605,0.40981921,109610.0,109600.0,0.64425716]
[1758859469809,0.40981921,109610.0,109600.0,0.94102907]
[1758859470013,0.40981921,109610.0,109600.0,0.94202907]
[1758859470810,0.40981921,109610.0,109600.0,0.94102907]
[1758859471111,0.41481921,109610.0,109600.0,0.94102907]
[1758859475616,0.41481921,109610.0,109600.0,0.64425716]
[1758859477317,0.81953921,109610.0,109600.0,0.06526317]
[1758859477513,0.1130556,109600.0,109590.0,0.75861508]
[1758859477713,0.9511756,109600.0,109590.0,0.84980908]
[1758859478018,1.24794751,109600.0,109590.0,0.94104579]
[1758859478220,1.15676191,109600.0,109590.0,0.94104579]
[1758859478903,0.85999,109600.0,109590.0,0.87578262]
[1758859479105,0.40982411,109610.0,109600.0,0.1269156]
[1758859479426,1.24798411,109610.0,109600.0,0.8500127]
[1758859479914,1.24798411,109610.0,109600.0,0.55324079]
[1758859481416,1.25298411,109610.0,109600.0,0.55324079]
[1758859482621,1.25292859,109610.0,109600.0,0.55324079]
[1758859483419,0.9562122,109610.0,109600.0,0.55324079]
[1758859483716,1.25292859,109610.0,109600.0,0.55324079]
[1758859486715,0.9562122,109610.0,109600.0,0.55324079]
[1758859487819,0.9562122,109610.0,109600.0,0.46205519]
[1758859488017,1.25292859,109610.0,109600.0,0.46205519]
[1758859488416,1.25292859,109610.0,109600.0,0.39653]
[1758859489121,0.1130556,109600.0,109590.0,0.46210519]
[1758859489320,0.40977199,109600.0,109590.0,0.46210519]
[1758859490221,0.40977199,109600.0,109590.0,0.39758]
[1758859490422,0.40977199,109600.0,109590.0,0.46310519]
[1758859492929,0.48202064,109600.0,109590.0,0.46310519]
[1758859495316,0.48202064,109600.0,109590.0,0.55429919]
[1758859496025,0.18530425,109600.0,109590.0,0.55429919]
[1758859496724,0.48202064,109600.0,109590.0,0.55429919]
[1758859499129,0.48202064,109600.0,109590.0,0.488774]
[1758859500523,0.1130556,109600.0,109590.0,0.78549039]
[1758859500734,0.85987,109600.0,109590.0,0.78549039]
[1758859501623,0.9510556,109600.0,109590.0,0.78549039]
[1758859501926,0.9510556,109600.0,109590.0,0.488774]
[1758859502128,0.9510556,109600.0,109590.0,0.5542738]
[1758859502426,0.9510556,109600.0,109590.0,0.488774]
[1758859502626,0.85987,109600.0,109590.0,0.78549039]
[1758859502928,0.838,109600.0,109590.0,0.78549039]
[1758859503525,0.38789029,109620.0,109600.0,0.0911794]
[1758859503727,0.0136939,109620.0,109610.0,0.03515]
[1758859503926,1.14841029,109620.0,109610.0,0.03515]
[1758859504429,1.14841029,109620.0,109610.0,0.39595]
[1758859504729,1.23958589,109620.0,109610.0,0.39595]
[1758859505130,1.24858589,109620.0,109610.0,0.39595]
[1758859505732,0.09663027,109620.0,109610.0,0.78384369]
[1758859505929,0.87226637,109620.0,109610.0,0.84934542]
[1758859506633,0.87226637,109620.0,109610.0,0.55262903]
[1758859506839,0.80033,109620.0,109610.0,0.55262903]
[1758859510242,0.78092,109620.0,109610.0,0.87507208]
[1758859511741,0.80033,109620.0,109610.0,0.87507208]
[1758859512045,1.18821539,109620.0,109610.0,0.48717839]
[1758859513349,1.18821539,109620.0,109610.0,0.03515]
[1758859513547,1.18821539,109620.0,109610.0,0.01316]
[1758859513739,1.18821539,109620.0,109610.0,0.03488]
[1758859515146,1.18821539,109620.0,109610.0,0.4868575]
[1758859515548,0.891499,109620.0,109610.0,0.4868575]
[1758859518049,1.18821539,109620.0,109610.0,0.39568]
[1758859519644,1.18821539,109620.0,109610.0,0.37396]
[1758859520047,1.18821539,109620.0,109610.0,0.39568]
[1758859523953,0.1105875,109610.0,109600.0,0.39568]
[1758859524152,0.1105958,109600.0,109590.0,0.3957]
[1758859524354,1.24511219,109600.0,109590.0,0.3957]
[1758859525356,0.9483958,109600.0,109590.0,0.3957]
[1758859525555,1.24511219,109600.0,109590.0,0.3957]
[1758859527258,1.24511219,109600.0,109590.0,0.3967]
[1758859527471,1.24511219,109600.0,109590.0,0.3997]
[1758859527955,1.24511219,109600.0,109590.0,0.4878941]
[1758859528256,0.9593958,109600.0,109590.0,0.4868941]
[1758859528762,0.9593958,109600.0,109590.0,0.0349]
[1758859528763,1.25611219,109600.0,109590.0,0.0349]
[1758859530959,1.25611219,109600.0,109590.0,0.3957]
[1758859532248,1.25611219,109600.0,109590.0,0.0349]
[1758859532650,1.26676599,109600.0,109590.0,0.0349]
[1758859534060,1.26676599,109600.0,109590.0,0.3957]
[1758859537060,1.25611219,109600.0,109590.0,0.3957]
[1758859538871,0.86821,109600.0,109590.0,0.78361039]
[1758859539263,0.8488,109600.0,109590.0,0.486894]
[1758859539462,0.8488,109600.0,109590.0,0.78361039]
[1758859539463,0.86821,109600.0,109590.0,0.78361039]
[1758859539765,0.86821,109600.0,109590.0,0.486894]
[1758859540367,0.86821,109600.0,109590.0,0.78361039]
[1758859540964,0.9593957,109600.0,109590.0,0.486894]
[1758859542568,0.9593957,109600.0,109590.0,0.78362155]
[1758859542569,1.25612325,109600.0,109590.0,0.78362155]
[1758859543368,1.25612325,109600.0,109590.0,0.3957]
[1758859543670,1.5528508,109600.0,109590.0,0.3957]
[1758859543865,0.9593957,109600.0,109590.0,0.3957]
[1758859544066,1.5528508,109600.0,109590.0,0.3957]
[1758859548767,1.5528508,109600.0,109590.0,0.0349]
[1758859549168,1.5528508,109600.0,109590.0,0.3957]
[1758859549764,1.25612325,109600.0,109590.0,0.3957]
[1758859550278,1.5528508,109600.0,109590.0,0.3957]
[1758859551680,1.5528508,109600.0,109590.0,0.4868941]
[1758859552176,1.25612325,109600.0,109590.0,0.4868941]
[1758859553072,1.5528508,109600.0,109590.0,0.4868941]
[1758859553477,1.25612325,109600.0,109590.0,0.4868941]
[1758859554075,1.25612325,109600.0,109590.0,0.78362165]
[1758859554275,0.9401057,109600.0,109590.0,0.78362165]
[1758859554576,1.25624325,109600.0,109590.0,0.78362165]
[1758859556494,0.84892,109600.0,109590.0,1.27486668]
[1758859557771,0.83992,109600.0,109590.0,1.27786668]
[1758859558985,0.83992,109600.0,109590.0,0.98113913]
[1758859559185,0.83992,109600.0,109590.0,1.27786668]
[1758859559382,0.83792,109600.0,109590.0,1.27886668]
[1758859560779,0.38790185,109620.0,109600.0,0.03496]
[1758859561082,0.39848455,109620.0,109610.0,0.78366505]
[1758859561387,1.23712455,109620.0,109610.0,0.78366505]
[1758859561889,1.24612455,109620.0,109610.0,0.78366505]
[1758859562090,1.15495185,109620.0,109610.0,0.78366505]
[1758859562879,1.24612095,109620.0,109610.0,0.78366505]
[1758859563187,1.24612095,109620.0,109610.0,0.69248755]
[1758859563486,1.5428485,109620.0,109610.0,0.39576]
[1758859564386,1.5448485,109620.0,109610.0,0.39576]
[1758859564588,1.5448485,109620.0,109610.0,0.4869375]
[1758859564783,1.24812095,109620.0,109610.0,0.78366505]
[1758859567793,1.24812095,109620.0,109610.0,0.4869375]
[1758859567993,1.5448485,109620.0,109610.0,0.69248755]
[1758859568190,1.5448485,109620.0,109610.0,0.39576]
[1758859570392,1.5448485,109620.0,109610.0,0.03496]
[1758859571391,1.9448485,109620.0,109610.0,0.03496]
[1758859571598,0.0964675,109610.0,109600.0,0.39648]
[1758859571794,0.39319505,109610.0,109600.0,0.39648]
[1758859571990,0.39319505,109610.0,109600.0,0.48770839]
[1758859572196,0.39319505,109610.0,109600.0,0.39648]
[1758859572492,0.39890005,109620.0,109600.0,0.78439335]
[1758859572698,0.40419005,109620.0,109610.0,0.42430505]
[1758859572893,1.24247005,109620.0,109610.0,0.1275775]
[1758859573196,1.23347005,109620.0,109610.0,0.42430505]
[1758859573388,1.23147005,109620.0,109610.0,0.4883775]
[1758859573590,1.23147005,109620.0,109610.0,0.78510505]
[1758859573993,0.9347425,109620.0,109610.0,0.78510505]
[1758859574300,1.23447005,109620.0,109610.0,0.78510505]
[1758859574799,1.23647005,109620.0,109610.0,0.78510505]
[1758859576101,1.23347005,109620.0,109610.0,0.78510505]
[1758859576298,1.24247005,109620.0,109610.0,0.78510505]
[1758859578102,1.15129755,109620.0,109610.0,0.78510505]
[1758859578300,1.15141755,109620.0,109610.0,0.78510505]
[1758859578498,1.15141755,109620.0,109610.0,0.4883775]
[1758859578704,1.15141755,109620.0,109610.0,0.78510505]
[1758859579105,0.85469,109620.0,109610.0,0.78510505]
[1758859579498,1.24258675,109620.0,109610.0,0.78510505]
[1758859579690,1.24258675,109620.0,109610.0,0.37441]
[1758859579894,0.0964675,109610.0,109600.0,0.39648]
[1758859580204,0.39319505,109610.0,109600.0,0.12690839]
[1758859580394,0.39319505,109610.0,109600.0,0.48770839]
[1758859580892,0.39319505,109610.0,109600.0,0.57889419]
[1758859581895,0.39319505,109610.0,109600.0,0.48770839]
[1758859582292,0.39619505,109610.0,109600.0,0.48770839]
[1758859583404,0.40219505,109610.0,109600.0,0.48770839]
[1758859583903,0.40419505,109610.0,109600.0,0.48770839]
[1758859586909,0.0964759,109600.0,109590.0,0.01316]
[1758859587105,1.84049855,109600.0,109590.0,0.01316]
[1758859587504,0.0964842,109590.0,109580.0,0.39544]
[1758859587807,0.0964842,109590.0,109580.0,0.48668503]
[1758859588010,0.39321175,109590.0,109580.0,0.48668503]
[1758859588606,0.40347971,109590.0,109580.0,0.48668503]
[1758859589728,0.40347971,109590.0,109580.0,0.48768503]
[1758859590100,0.40347971,109590.0,109580.0,0.49068503]
[1758859590609,0.40647971,109590.0,109580.0,0.48768503]
[1758859592313,0.0994842,109590.0,109580.0,0.48668503]
[1758859592610,0.0912024,109580.0,109570.0,0.01361]
[1758859592815,0.0912024,109580.0,109560.0,0.39565]
[1758859592816,0.0965008,109570.0,109560.0,0.39565]
[1758859593110,0.6899559,109570.0,109560.0,0.37363]
[1758859593511,1.0507559,109570.0,109560.0,0.01283]
[1758859593699,0.0965091,109560.0,109550.0,0.39565]